[Event "Kvibergspelen 2022"]
[Site "Kviberg Park Hotel & Conference, Krutvagen 2, Gothenburg, Sweden"]
[Date "2022.09.30"]
[Round "4.11"]
[White "Agdestein, Simen"]
[Black "Ibrahimli, Nihad"]
[Result "1-0"]
[TimeControl "15 minutes + 5 seconds per move from move one (Round 1 - 4) / 90 minutes + 30 seconds per move from move one (Round 5 - 8)"]
[WhiteTitle "GM"]
[WhiteFideId "1500015"]
[BlackFideId "13415514"]
[WhiteElo "2576"]
[BlackElo "1679"]

1. e4 {[%clk 00:15:09]} c6 {[%clk 00:15:08]} {[%emt 00:00:03]} 2. d4 {[%clk
00:15:10]} {[%emt 00:00:04]} d5 {[%clk 00:15:11]} {[%emt 00:00:02]} 3. Nc3
{[%clk 00:15:14]} dxe4 4. Nxe4 {[%clk 00:15:18]} Bf5 {[%clk 00:15:08]} {[%emt
00:00:01]} 5. Ng3 {[%clk 00:15:20]} {[%emt 00:00:02]} Bg6 {[%clk 00:15:06]}
{[%emt 00:00:07]} 6. h4 {[%clk 00:15:22]} {[%emt 00:00:03]} h6 {[%clk
00:15:01]} {[%emt 00:00:10]} 7. Nf3 {[%clk 00:15:26]} {[%emt 00:00:01]} e6
{[%clk 00:14:58]} {[%emt 00:00:09]} 8. Ne5 {[%clk 00:15:29]} {[%emt 00:00:02]}
Ne7 {[%clk 00:14:32]} {[%emt 00:00:31]} 9. Nxg6 {[%clk 00:14:11]} {[%emt
00:01:22]} Nxg6 {[%clk 00:14:33]} {[%emt 00:00:04]} 10. h5 {[%clk 00:14:08]}
{[%emt 00:00:08]} Ne7 {[%clk 00:14:27]} {[%emt 00:00:12]} 11. c4 {[%clk
00:13:26]} {[%emt 00:00:47]} Qc7 {[%clk 00:13:31]} {[%emt 00:01:01]} 12. Be3
{[%clk 00:13:08]} {[%emt 00:00:22]} Nd7 {[%clk 00:13:20]} {[%emt 00:00:17]} 13.
Qf3 {[%clk 00:12:39]} {[%emt 00:00:33]} Nf6 {[%clk 00:12:43]} {[%emt 00:00:42]}
14. O-O-O {[%clk 00:12:31]} {[%emt 00:00:13]} O-O-O {[%clk 00:12:35]} {[%emt
00:00:13]} 15. Bd3 {[%clk 00:11:55]} {[%emt 00:00:41]} Neg8 {[%clk 00:09:25]}
{[%emt 00:03:15]} 16. Kb1 {[%clk 00:11:05]} {[%emt 00:00:54]} Qa5 {[%clk
00:09:03]} {[%emt 00:00:28]} 17. Bc2 {[%clk 00:09:47]} {[%emt 00:01:23]} Bd6
{[%clk 00:08:07]} {[%emt 00:01:00]} 18. Ne2 {[%clk 00:09:47]} {[%emt 00:00:05]}
Ne7 {[%clk 00:07:13]} {[%emt 00:01:00]} 19. g4 {[%clk 00:09:48]} {[%emt
00:00:03]} e5 {[%clk 00:06:02]} {[%emt 00:01:17]} 20. Bd2 {[%clk 00:07:53]}
{[%emt 00:02:00]} Qa6 {[%clk 00:03:33]} {[%emt 00:02:34]} 21. c5 {[%clk
00:07:34]} {[%emt 00:00:23]} Bc7 {[%clk 00:03:35]} {[%emt 00:00:04]} 22. g5
{[%clk 00:06:18]} {[%emt 00:01:21]} hxg5 {[%clk 00:01:47]} {[%emt 00:01:53]} 23.
Bxg5 {[%clk 00:06:21]} Ned5 {[%clk 00:00:52]} {[%emt 00:01:00]} 24. dxe5 {[%clk
00:05:36]} {[%emt 00:00:51]} 1-0

[Event "Kvibergspelen 2022"]
[Site "Kviberg Park Hotel & Conference, Krutvagen 2, Gothenburg, Sweden"]
[Date "2022.09.30"]
[Round "4.12"]
[White "Frisk, Hans"]
[Black "Mohammadi, Amir"]
[Result "0-1"]
[TimeControl "15 minutes + 5 seconds per move from move one (Round 1 - 4) / 90 minutes + 30 seconds per move from move one (Round 5 - 8)"]
[WhiteFideId "1708570"]
[BlackFideId "1705890"]
[WhiteElo "1911"]
[BlackElo "2294"]

1. Nf3 {[%clk 00:15:07]} {[%emt 00:00:03]} f5 {[%clk 00:15:09]} {[%emt
00:00:02]} 2. g3 {[%clk 00:15:05]} {[%emt 00:00:06]} Nf6 {[%clk 00:15:13]}
{[%emt 00:00:01]} 3. Bg2 {[%clk 00:15:09]} e6 {[%clk 00:15:18]} 4. c4 {[%clk
00:15:01]} {[%emt 00:00:14]} d5 {[%clk 00:15:19]} {[%emt 00:00:04]} 5. cxd5
{[%clk 00:14:47]} {[%emt 00:00:20]} exd5 {[%clk 00:15:22]} {[%emt 00:00:02]} 6.
O-O {[%clk 00:14:39]} {[%emt 00:00:13]} c6 {[%clk 00:15:24]} {[%emt 00:00:04]}
7. d3 {[%clk 00:14:28]} {[%emt 00:00:16]} Bd6 {[%clk 00:15:25]} {[%emt
00:00:04]} 8. b3 {[%clk 00:14:30]} {[%emt 00:00:03]} O-O {[%clk 00:15:27]}
{[%emt 00:00:03]} 9. Bb2 {[%clk 00:13:25]} {[%emt 00:01:09]} f4 {[%clk
00:15:16]} {[%emt 00:00:16]} 10. Nbd2 {[%clk 00:13:17]} {[%emt 00:00:13]} Bg4
{[%clk 00:15:15]} {[%emt 00:00:07]} 11. Re1 {[%clk 00:12:00]} {[%emt 00:01:22]}
Nbd7 {[%clk 00:15:02]} {[%emt 00:00:17]} 12. Rc1 {[%clk 00:11:28]} {[%emt
00:00:38]} Qa5 {[%clk 00:13:47]} {[%emt 00:01:20]} 13. Qc2 {[%clk 00:11:14]}
{[%emt 00:00:19]} Rae8 {[%clk 00:13:35]} {[%emt 00:00:16]} 14. a3 {[%clk
00:10:17]} {[%emt 00:01:03]} Qd8 {[%clk 00:12:44]} {[%emt 00:00:56]} 15. b4
{[%clk 00:10:10]} {[%emt 00:00:13]} Kh8 {[%clk 00:11:51]} {[%emt 00:00:57]} 16.
Qb3 {[%clk 00:08:28]} {[%emt 00:01:46]} a6 {[%clk 00:11:42]} {[%emt 00:00:14]}
17. Qc3 {[%clk 00:06:57]} {[%emt 00:01:36]} Qe7 {[%clk 00:11:24]} {[%emt
00:00:23]} 18. e4 {[%clk 00:06:34]} {[%emt 00:00:28]} fxe3 {[%clk 00:10:57]}
{[%emt 00:00:32]} 19. Rxe3 {[%clk 00:06:37]} {[%emt 00:00:02]} Qf7 {[%clk
00:11:00]} {[%emt 00:00:02]} 20. Rce1 {[%clk 00:06:17]} {[%emt 00:00:25]} Rxe3
{[%clk 00:10:55]} {[%emt 00:00:11]} 21. Rxe3 {[%clk 00:06:17]} {[%emt
00:00:04]} Qh5 {[%clk 00:09:06]} {[%emt 00:01:54]} 22. Qd4 {[%clk 00:03:07]}
{[%emt 00:03:16]} c5 {[%clk 00:09:08]} {[%emt 00:00:03]} 23. bxc5 {[%clk
00:02:49]} {[%emt 00:00:23]} Bxc5 {[%clk 00:09:11]} {[%emt 00:00:02]} 24. Qc3
{[%clk 00:02:53]} Bxe3 {[%clk 00:09:05]} {[%emt 00:00:11]} 25. fxe3 {[%clk
00:02:56]} Re8 {[%clk 00:08:37]} {[%emt 00:00:34]} 26. e4 {[%clk 00:02:46]}
{[%emt 00:00:15]} dxe4 {[%clk 00:08:27]} {[%emt 00:00:15]} 27. dxe4 {[%emt
00:00:05]} Qc5+ {[%clk 00:08:02]} {[%emt 00:00:26]} 28. Qxc5 {[%clk 00:02:47]}
{[%emt 00:00:10]} Nxc5 {[%clk 00:08:05]} {[%emt 00:00:02]} 29. Ne5 {[%clk
00:02:27]} {[%emt 00:00:25]} Be6 {[%clk 00:06:26]} {[%emt 00:01:43]} 30. Kf2
{[%clk 00:02:19]} {[%emt 00:00:13]} Ng4+ {[%clk 00:04:30]} {[%emt 00:02:01]} 31.
Nxg4 {[%clk 00:02:13]} {[%emt 00:00:11]} Nd3+ {[%clk 00:04:32]} {[%emt
00:00:04]} 32. Ke3 {[%clk 00:01:59]} {[%emt 00:00:19]} Nxb2 {[%clk 00:04:34]}
{[%emt 00:00:03]} 33. Ne5 {[%clk 00:01:44]} {[%emt 00:00:20]} g6 {[%clk
00:04:25]} {[%emt 00:00:14]} 34. Bf1 {[%clk 00:01:31]} {[%emt 00:00:18]} Kg7
{[%clk 00:04:22]} {[%emt 00:00:08]} 35. Ndc4 {[%clk 00:01:03]} {[%emt
00:00:33]} Bxc4 {[%clk 00:03:07]} {[%emt 00:01:19]} 36. Nxc4 {[%clk 00:00:58]}
{[%emt 00:00:10]} Nxc4+ {[%clk 00:02:55]} {[%emt 00:00:18]} 37. Bxc4 {[%clk
00:01:02]} Kf6 {[%clk 00:02:47]} {[%emt 00:00:12]} 38. Kd4 {[%clk 00:01:04]}
{[%emt 00:00:03]} b5 {[%clk 00:02:00]} {[%emt 00:00:52]} 39. Bd5 {[%clk
00:01:05]} {[%emt 00:00:04]} Rb8 {[%clk 00:02:04]} {[%emt 00:00:02]} 40. Kc5
{[%clk 00:00:45]} {[%emt 00:00:25]} Ke5 {[%clk 00:02:06]} {[%emt 00:00:03]} 41.
g4 {[%clk 00:00:33]} {[%emt 00:00:17]} a5 {[%clk 00:02:01]} {[%emt 00:00:10]}
42. Kc6 {[%clk 00:00:16]} {[%emt 00:00:22]} b4 {[%clk 00:02:00]} {[%emt
00:00:06]} 43. axb4 {[%clk 00:00:19]} {[%emt 00:00:02]} Rxb4 {[%clk 00:02:00]}
{[%emt 00:00:05]} 0-1

[Event "Kvibergspelen 2022"]
[Site "Kviberg Park Hotel & Conference, Krutvagen 2, Gothenburg, Sweden"]
[Date "2022.09.30"]
[Round "4.13"]
[White "Nilsson, Oliver"]
[Black "Burwick, Malte"]
[Result "1-0"]
[TimeControl "15 minutes + 5 seconds per move from move one (Round 1 - 4) / 90 minutes + 30 seconds per move from move one (Round 5 - 8)"]
[WhiteFideId "1730177"]
[BlackFideId "1702475"]
[WhiteElo "1909"]
[BlackElo "2225"]

1. e4 {[%clk 00:15:07]} {[%emt 00:00:02]} g6 {[%clk 00:15:07]} {[%emt
00:00:03]} 2. d4 {[%clk 00:15:11]} {[%emt 00:00:02]} Bg7 {[%clk 00:15:11]}
{[%emt 00:00:02]} 3. Nf3 {[%clk 00:15:13]} {[%emt 00:00:03]} d6 {[%clk
00:15:13]} {[%emt 00:00:03]} 4. Bd3 {[%clk 00:15:14]} {[%emt 00:00:03]} e5
{[%clk 00:14:41]} {[%emt 00:00:38]} 5. dxe5 {[%clk 00:14:42]} {[%emt 00:00:38]}
dxe5 {[%clk 00:14:44]} 6. Nc3 {[%clk 00:14:43]} {[%emt 00:00:04]} h6 {[%clk
00:14:21]} {[%emt 00:00:29]} 7. O-O {[%clk 00:14:45]} {[%emt 00:00:03]} Be6
{[%clk 00:14:23]} {[%emt 00:00:03]} 8. Be3 {[%clk 00:14:44]} {[%emt 00:00:06]}
Nd7 {[%clk 00:14:10]} {[%emt 00:00:18]} 9. Qe2 {[%clk 00:14:42]} {[%emt
00:00:07]} Ngf6 {[%clk 00:14:00]} {[%emt 00:00:15]} 10. Nd2 {[%clk 00:14:05]}
{[%emt 00:00:42]} Ng4 {[%clk 00:13:19]} {[%emt 00:00:46]} 11. Bc4 {[%clk
00:13:36]} {[%emt 00:00:35]} Bxc4 {[%clk 00:13:14]} {[%emt 00:00:10]} 12. Nxc4
{[%clk 00:13:39]} {[%emt 00:00:03]} Nxe3 {[%clk 00:12:15]} {[%emt 00:01:03]} 13.
Qxe3 {[%clk 00:13:32]} {[%emt 00:00:13]} O-O {[%clk 00:12:06]} {[%emt
00:00:14]} 14. Rad1 {[%clk 00:13:30]} {[%emt 00:00:07]} Qc8 {[%clk 00:12:01]}
{[%emt 00:00:10]} 15. Nd5 {[%clk 00:13:31]} {[%emt 00:00:04]} Re8 {[%clk
00:11:52]} {[%emt 00:00:13]} 16. Rd2 {[%clk 00:13:32]} {[%emt 00:00:05]} Nf8
{[%clk 00:10:21]} {[%emt 00:01:37]} 17. Qa3 {[%clk 00:12:11]} {[%emt 00:01:26]}
Kh7 {[%clk 00:10:14]} {[%emt 00:00:12]} 18. Rfd1 {[%clk 00:11:26]} {[%emt
00:00:50]} a5 {[%clk 00:10:01]} {[%emt 00:00:18]} 19. Qf3 {[%clk 00:07:55]}
{[%emt 00:03:36]} Kg8 {[%clk 00:08:36]} {[%emt 00:01:29]} 20. Qa3 {[%clk
00:06:22]} {[%emt 00:01:38]} Qb8 {[%clk 00:07:03]} {[%emt 00:01:38]} 21. Qf3
{[%clk 00:03:55]} {[%emt 00:02:32]} Ra6 {[%clk 00:06:47]} {[%emt 00:00:21]} 22.
Nce3 {[%clk 00:02:16]} {[%emt 00:01:43]} Nh7 {[%clk 00:02:59]} {[%emt
00:03:53]} 23. Ne7+ {[%clk 00:01:36]} {[%emt 00:00:44]} Kf8 {[%clk 00:03:03]}
{[%emt 00:00:01]} 24. Rd7 {[%clk 00:01:24]} {[%emt 00:00:17]} Ng5 {[%clk
00:03:02]} {[%emt 00:00:05]} 25. Qg4 {[%clk 00:00:38]} {[%emt 00:00:52]} Rd6
{[%clk 00:03:02]} {[%emt 00:00:06]} 26. R1xd6 {[%clk 00:00:19]} {[%emt
00:00:23]} cxd6 {[%clk 00:03:05]} {[%emt 00:00:02]} 27. N7d5 {[%clk 00:00:16]}
{[%emt 00:00:08]} Rd8 {[%clk 00:02:33]} {[%emt 00:00:37]} 28. Rxd8+ {[%clk
00:00:13]} {[%emt 00:00:09]} Qxd8 {[%clk 00:02:37]} 29. h4 {[%clk 00:00:13]}
{[%emt 00:00:05]} Ne6 {[%clk 00:02:36]} {[%emt 00:00:05]} 30. c3 {[%clk
00:00:14]} {[%emt 00:00:04]} h5 {[%clk 00:02:37]} {[%emt 00:00:04]} 31. Qg3
{[%clk 00:00:12]} {[%emt 00:00:07]} Bh6 {[%clk 00:02:41]} {[%emt 00:00:03]} 32.
Qh3 {[%clk 00:00:07]} {[%emt 00:00:09]} b5 {[%clk 00:02:34]} {[%emt 00:00:11]}
33. g3 {[%clk 00:00:10]} {[%emt 00:00:02]} Bxe3 {[%clk 00:02:27]} {[%emt
00:00:12]} 34. Nxe3 {[%clk 00:00:14]} {[%emt 00:00:01]} Nc5 {[%clk 00:02:21]}
{[%emt 00:00:11]} 35. Qg2 {[%clk 00:00:07]} {[%emt 00:00:12]} Nd3 {[%clk
00:02:15]} {[%emt 00:00:11]} 36. b3 {[%clk 00:00:11]} {[%emt 00:00:01]} Qc8
{[%clk 00:02:10]} {[%emt 00:00:10]} 37. Nd5 {[%clk 00:00:12]} {[%emt 00:00:04]}
Qc5 {[%clk 00:01:58]} {[%emt 00:00:16]} 38. Qf3 {[%clk 00:00:12]} {[%emt
00:00:05]} Qa7 {[%clk 00:00:30]} {[%emt 00:01:32]} 39. Qxd3 {[%clk 00:00:13]}
{[%emt 00:00:06]} 1-0

[Event "Kvibergspelen 2022"]
[Site "Kviberg Park Hotel & Conference, Krutvagen 2, Gothenburg, Sweden"]
[Date "2022.09.30"]
[Round "4.14"]
[White "Malmqvist, Glenn"]
[Black "Hauksson, Hordur Aron"]
[Result "0-1"]
[TimeControl "15 minutes + 5 seconds per move from move one (Round 1 - 4) / 90 minutes + 30 seconds per move from move one (Round 5 - 8)"]
[WhiteFideId "1705750"]
[BlackFideId "2303680"]
[WhiteElo "2172"]
[BlackElo "1882"]

1. e4 {[%clk 00:15:07]} {[%emt 00:00:03]} c5 {[%clk 00:15:08]} {[%emt
00:00:03]} 2. Nf3 {[%clk 00:15:09]} {[%emt 00:00:03]} Nc6 {[%clk 00:15:11]}
{[%emt 00:00:02]} 3. Bb5 {[%clk 00:15:12]} {[%emt 00:00:02]} g6 {[%clk
00:15:08]} {[%emt 00:00:07]} 4. O-O {[%clk 00:15:15]} {[%emt 00:00:03]} Bg7
{[%clk 00:15:10]} {[%emt 00:00:03]} 5. c3 {[%clk 00:15:11]} {[%emt 00:00:11]}
e6 {[%clk 00:14:37]} {[%emt 00:00:38]} 6. Re1 {[%clk 00:15:01]} {[%emt
00:00:14]} Nge7 {[%clk 00:14:40]} {[%emt 00:00:02]} 7. d4 {[%clk 00:14:46]}
{[%emt 00:00:20]} cxd4 {[%clk 00:14:31]} {[%emt 00:00:14]} 8. cxd4 {[%clk
00:14:48]} {[%emt 00:00:04]} a6 {[%clk 00:13:24]} {[%emt 00:01:13]} 9. Bf1
{[%clk 00:14:18]} {[%emt 00:00:35]} d5 {[%clk 00:12:51]} {[%emt 00:00:37]} 10.
e5 {[%clk 00:14:03]} {[%emt 00:00:20]} O-O {[%clk 00:12:43]} {[%emt 00:00:13]}
11. Nc3 {[%clk 00:13:41]} {[%emt 00:00:27]} f6 {[%clk 00:11:53]} {[%emt
00:00:55]} 12. exf6 {[%clk 00:13:45]} {[%emt 00:00:01]} Bxf6 {[%clk 00:11:56]}
{[%emt 00:00:02]} 13. Bh6 {[%clk 00:13:48]} {[%emt 00:00:01]} Bg7 {[%clk
00:11:49]} {[%emt 00:00:13]} 14. Bxg7 {[%clk 00:13:47]} {[%emt 00:00:06]} Kxg7
{[%clk 00:11:53]} {[%emt 00:00:01]} 15. Ng5 {[%clk 00:13:04]} {[%emt 00:00:48]}
Qd6 {[%clk 00:11:56]} {[%emt 00:00:02]} 16. Qg4 {[%clk 00:09:39]} {[%emt
00:03:30]} Qf4 {[%clk 00:10:13]} {[%emt 00:01:47]} 17. Qxf4 {[%clk 00:08:47]}
{[%emt 00:00:58]} Rxf4 {[%clk 00:10:16]} {[%emt 00:00:02]} 18. Nxe6+ {[%clk
00:08:50]} {[%emt 00:00:02]} Bxe6 {[%clk 00:10:15]} {[%emt 00:00:06]} 19. Rxe6
{[%clk 00:08:54]} {[%emt 00:00:02]} Rxd4 {[%clk 00:09:53]} {[%emt 00:00:26]} 20.
Rae1 {[%clk 00:08:02]} {[%emt 00:00:58]} Nf5 {[%clk 00:09:28]} {[%emt
00:00:30]} 21. g3 {[%clk 00:07:59]} {[%emt 00:00:08]} Rd2 {[%clk 00:06:25]}
{[%emt 00:03:07]} 22. R6e2 {[%clk 00:04:05]} {[%emt 00:04:00]} Rxe2 {[%clk
00:06:16]} {[%emt 00:00:14]} 23. Nxe2 {[%clk 00:03:33]} {[%emt 00:00:37]} Re8
{[%clk 00:03:01]} {[%emt 00:03:19]} 24. Rd1 {[%clk 00:03:34]} {[%emt 00:00:04]}
d4 {[%clk 00:01:44]} {[%emt 00:01:22]} 25. g4 {[%clk 00:02:47]} {[%emt
00:00:52]} Nh4 {[%clk 00:01:47]} {[%emt 00:00:03]} 26. Nf4 {[%clk 00:01:42]}
{[%emt 00:01:10]} Kf6 {[%clk 00:01:42]} {[%emt 00:00:09]} 27. Bg2 {[%clk
00:01:33]} {[%emt 00:00:14]} Kg5 {[%clk 00:01:05]} {[%emt 00:00:42]} 28. Nd5
{[%clk 00:01:05]} {[%emt 00:00:33]} Re2 {[%clk 00:01:05]} {[%emt 00:00:06]} 29.
h3 {[%clk 00:00:52]} {[%emt 00:00:18]} Nxg2 {[%clk 00:01:02]} {[%emt 00:00:09]}
30. Kxg2 {[%clk 00:00:50]} {[%emt 00:00:06]} Rxb2 {[%clk 00:01:06]} {[%emt
00:00:02]} 31. Ra1 {[%clk 00:00:06]} {[%emt 00:00:49]} Nb4 {[%clk 00:00:54]}
{[%emt 00:00:17]} 0-1

[Event "Kvibergspelen 2022"]
[Site "Kviberg Park Hotel & Conference, Krutvagen 2, Gothenburg, Sweden"]
[Date "2022.09.30"]
[Round "4.15"]
[White "Berg, Roy"]
[Black "Nygren, David"]
[Result "0-1"]
[TimeControl "15 minutes + 5 seconds per move from move one (Round 1 - 4) / 90 minutes + 30 seconds per move from move one (Round 5 - 8)"]
[WhiteFideId "1711458"]
[BlackFideId "1704761"]
[WhiteElo "1905"]
[BlackElo "2165"]

1. d4 {[%clk 00:15:08]} Nf6 {[%clk 00:15:08]} {[%emt 00:00:03]} 2. c4 {[%clk
00:15:11]} {[%emt 00:00:02]} e6 {[%clk 00:15:10]} {[%emt 00:00:03]} 3. Nf3
{[%clk 00:15:14]} {[%emt 00:00:02]} c5 {[%clk 00:15:12]} {[%emt 00:00:03]} 4.
d5 {[%clk 00:15:11]} {[%emt 00:00:08]} exd5 {[%clk 00:15:15]} {[%emt 00:00:02]}
5. cxd5 {[%clk 00:15:13]} {[%emt 00:00:03]} d6 {[%clk 00:15:18]} {[%emt
00:00:02]} 6. Nc3 {[%clk 00:15:14]} {[%emt 00:00:03]} g6 {[%clk 00:15:16]}
{[%emt 00:00:07]} 7. g3 {[%clk 00:15:17]} {[%emt 00:00:02]} Bg7 {[%clk
00:15:18]} {[%emt 00:00:04]} 8. Bg2 {[%clk 00:15:21]} {[%emt 00:00:02]} O-O
{[%clk 00:15:19]} {[%emt 00:00:04]} 9. O-O {[%clk 00:15:23]} {[%emt 00:00:03]}
Re8 {[%clk 00:15:22]} {[%emt 00:00:03]} 10. h3 {[%clk 00:14:51]} {[%emt
00:00:36]} a6 {[%clk 00:15:08]} {[%emt 00:00:19]} 11. a4 {[%clk 00:14:55]}
{[%emt 00:00:02]} Nbd7 {[%clk 00:15:08]} {[%emt 00:00:05]} 12. Bf4 {[%clk
00:14:18]} {[%emt 00:00:41]} Qc7 {[%clk 00:14:41]} {[%emt 00:00:33]} 13. Nd2
{[%clk 00:13:34]} {[%emt 00:00:48]} Nh5 {[%clk 00:14:34]} {[%emt 00:00:13]} 14.
Nc4 {[%clk 00:12:31]} {[%emt 00:01:09]} Nxf4 {[%clk 00:14:32]} {[%emt
00:00:07]} 15. gxf4 {[%clk 00:12:34]} {[%emt 00:00:02]} Nb6 {[%clk 00:14:17]}
{[%emt 00:00:20]} 16. Qb3 {[%clk 00:11:56]} {[%emt 00:00:43]} Nxc4 {[%clk
00:14:09]} {[%emt 00:00:13]} 17. Qxc4 {[%clk 00:11:58]} {[%emt 00:00:02]} Bd7
{[%clk 00:13:51]} {[%emt 00:00:24]} 18. e3 {[%clk 00:11:39]} {[%emt 00:00:24]}
b5 {[%clk 00:12:12]} {[%emt 00:01:44]} 19. axb5 {[%clk 00:10:32]} {[%emt
00:01:13]} axb5 {[%clk 00:12:04]} {[%emt 00:00:13]} 20. Qb3 {[%clk 00:08:41]}
{[%emt 00:01:55]} b4 {[%clk 00:11:46]} {[%emt 00:00:23]} 21. Ne4 {[%clk
00:08:31]} {[%emt 00:00:15]} Bb5 {[%clk 00:11:12]} {[%emt 00:00:40]} 22. Rxa8
{[%clk 00:08:28]} {[%emt 00:00:08]} Rxa8 {[%clk 00:11:13]} {[%emt 00:00:05]} 23.
Rc1 {[%clk 00:08:26]} {[%emt 00:00:06]} Qb6 {[%clk 00:10:41]} {[%emt 00:00:37]}
24. Nd2 {[%clk 00:07:50]} {[%emt 00:00:41]} Ba4 {[%clk 00:10:22]} {[%emt
00:00:24]} 25. Qa2 {[%clk 00:07:00]} {[%emt 00:00:54]} Bc6 {[%clk 00:09:58]}
{[%emt 00:00:30]} 26. Qb3 {[%clk 00:06:53]} {[%emt 00:00:12]} Bb7 {[%clk
00:09:59]} {[%emt 00:00:05]} 27. Nc4 {[%clk 00:06:54]} {[%emt 00:00:04]} Qd8
{[%clk 00:10:02]} {[%emt 00:00:01]} 28. e4 {[%clk 00:06:27]} {[%emt 00:00:31]}
Bd4 {[%clk 00:09:57]} {[%emt 00:00:11]} 29. e5 {[%clk 00:05:58]} {[%emt
00:00:34]} dxe5 {[%clk 00:09:40]} {[%emt 00:00:22]} 30. Nxe5 {[%clk 00:05:41]}
{[%emt 00:00:23]} Qf6 {[%clk 00:09:16]} {[%emt 00:00:28]} 31. Nd3 {[%clk
00:04:16]} {[%emt 00:01:30]} Rc8 {[%clk 00:09:19]} {[%emt 00:00:01]} 32. Kf1
{[%clk 00:03:03]} {[%emt 00:01:18]} Ba6 {[%clk 00:09:23]} {[%emt 00:00:02]} 33.
Kg1 {[%clk 00:03:00]} {[%emt 00:00:08]} c4 {[%clk 00:09:06]} {[%emt 00:00:22]}
34. Qa4 {[%clk 00:02:51]} {[%emt 00:00:14]} cxd3 {[%clk 00:08:11]} {[%emt
00:01:00]} 35. Rxc8+ {[%clk 00:02:26]} {[%emt 00:00:30]} Bxc8 {[%clk 00:08:01]}
{[%emt 00:00:15]} 36. Qe8+ {[%clk 00:02:28]} {[%emt 00:00:03]} Kg7 {[%clk
00:08:05]} {[%emt 00:00:02]} 37. Qxc8 {[%clk 00:02:17]} {[%emt 00:00:16]} Qxf4
{[%clk 00:07:50]} {[%emt 00:00:20]} 38. Qg4 {[%clk 00:01:48]} {[%emt 00:00:33]}
Qxf2+ {[%clk 00:07:46]} {[%emt 00:00:09]} 39. Kh1 {[%clk 00:01:35]} {[%emt
00:00:19]} Qg1# {[%emt 00:00:02]} 0-1

[Event "Kvibergspelen 2022"]
[Site "Kviberg Park Hotel & Conference, Krutvagen 2, Gothenburg, Sweden"]
[Date "2022.09.30"]
[Round "4.16"]
[White "Lindahl, Jonas"]
[Black "Nackholm, Erik"]
[Result "1/2-1/2"]
[TimeControl "15 minutes + 5 seconds per move from move one (Round 1 - 4) / 90 minutes + 30 seconds per move from move one (Round 5 - 8)"]
[WhiteFideId "1710060"]
[BlackFideId "1721593"]
[WhiteElo "2165"]
[BlackElo "1861"]

1. e4 {[%clk 00:15:05]} {[%emt 00:00:04]} Nf6 {[%clk 00:15:04]} {[%emt
00:00:07]} 2. e5 {[%clk 00:15:07]} {[%emt 00:00:03]} Nd5 {[%clk 00:15:08]} 3.
d4 {[%clk 00:15:10]} {[%emt 00:00:02]} d6 {[%clk 00:15:12]} 4. Nf3 {[%clk
00:15:11]} {[%emt 00:00:04]} dxe5 {[%clk 00:15:15]} {[%emt 00:00:03]} 5. Nxe5
{[%clk 00:15:13]} {[%emt 00:00:02]} c6 {[%clk 00:15:19]} 6. Be2 {[%clk
00:15:06]} {[%emt 00:00:13]} Bf5 {[%clk 00:14:59]} {[%emt 00:00:25]} 7. O-O
{[%clk 00:15:05]} {[%emt 00:00:06]} Nd7 {[%clk 00:13:57]} {[%emt 00:01:07]} 8.
Bg4 {[%clk 00:13:55]} {[%emt 00:01:15]} Bxg4 {[%clk 00:13:23]} {[%emt
00:00:39]} 9. Qxg4 {[%clk 00:13:38]} {[%emt 00:00:22]} N5f6 {[%clk 00:12:52]}
{[%emt 00:00:36]} 10. Qe2 {[%clk 00:12:31]} {[%emt 00:01:13]} e6 {[%clk
00:12:29]} {[%emt 00:00:29]} 11. Re1 {[%clk 00:10:38]} {[%emt 00:01:57]} Be7
{[%clk 00:09:22]} {[%emt 00:03:12]} 12. Bg5 {[%clk 00:08:00]} {[%emt 00:02:43]}
O-O {[%clk 00:09:19]} {[%emt 00:00:08]} 13. Nd2 {[%clk 00:07:09]} {[%emt
00:00:56]} h6 {[%clk 00:06:20]} {[%emt 00:03:05]} 14. Bh4 {[%clk 00:06:18]}
{[%emt 00:00:55]} Nxe5 {[%clk 00:05:26]} {[%emt 00:00:59]} 15. dxe5 {[%clk
00:06:15]} {[%emt 00:00:08]} Nd5 {[%clk 00:04:29]} {[%emt 00:01:04]} 16. Bg3
{[%clk 00:05:06]} {[%emt 00:01:12]} Bg5 {[%clk 00:03:33]} {[%emt 00:01:01]} 17.
Ne4 {[%clk 00:04:39]} {[%emt 00:00:31]} Bf4 {[%clk 00:02:55]} {[%emt 00:00:42]}
18. Rad1 {[%clk 00:04:18]} {[%emt 00:00:26]} Qb6 {[%clk 00:02:11]} {[%emt
00:00:50]} 19. c4 {[%clk 00:04:04]} {[%emt 00:00:19]} Bxg3 {[%clk 00:02:03]}
{[%emt 00:00:12]} 20. hxg3 {[%clk 00:04:04]} {[%emt 00:00:06]} Ne7 {[%clk
00:01:19]} {[%emt 00:00:50]} 21. Nd6 {[%clk 00:02:32]} {[%emt 00:01:36]} c5
{[%clk 00:01:05]} {[%emt 00:00:19]} 22. Rd3 {[%clk 00:02:03]} {[%emt 00:00:35]}
Nc6 {[%clk 00:00:58]} {[%emt 00:00:12]} 23. Rb3 {[%clk 00:02:03]} {[%emt
00:00:05]} Nd4 {[%clk 00:00:43]} {[%emt 00:00:20]} 1/2-1/2